[Event "Titled Tuesday Blitz June 20 Late 2023"]
[White "Oro, Faustino"]
[Black "Xiong, Jeffery"]
[WhiteFideId "20000197"]
[BlackFideId "2047640"]
[WhiteElo "1984"]
[BlackElo "2726"]
[Result "0-1"]
[Round "10"]
[TimeControl "180+2"]
[Date "2023.06.20"]
[WhiteClock "0:00:18"]
[BlackClock "0:01:43"]
[Board "14"]

1. Nf3 {[%clk 0:03:00]}  c5 {[%clk 0:03:00]} 2. e4 {[%clk 0:03:00]}  d6 {[%clk 0:03:00]} 3. d4 {[%clk 0:03:00]}  cxd4 {[%clk 0:03:01]} 4. Nxd4 {[%clk 0:03:01]}  Nf6 {[%clk 0:03:01]} 5. Nc3 {[%clk 0:03:01]}  a6 {[%clk 0:03:01]} 6. Be2 {[%clk 0:02:59]}  e5 {[%clk 0:03:01]} 7. Nb3 {[%clk 0:02:59]}  Be7 {[%clk 0:03:02]} 8. O-O {[%clk 0:03:00]}  O-O {[%clk 0:03:02]} 9. Be3 {[%clk 0:03:00]}  Be6 {[%clk 0:03:02]} 10. Qd3 {[%clk 0:03:00]}  Nbd7 {[%clk 0:03:02]} 11. Nd5 {[%clk 0:03:00]}  Bxd5 {[%clk 0:03:01]} 12. exd5 {[%clk 0:03:01]}  Ne8 {[%clk 0:03:02]} 13. c4 {[%clk 0:02:59]}  Rc8 {[%clk 0:02:59]} 14. Rac1 {[%clk 0:02:58]}  Bg5 {[%clk 0:02:52]} 15. Nd2 {[%clk 0:02:40]}  f5 {[%clk 0:02:50]} 16. f4 {[%clk 0:02:29]}  exf4 {[%clk 0:02:50]} 17. Bxf4 {[%clk 0:02:30]}  Ne5 {[%clk 0:02:50]} 18. Qd4 {[%clk 0:02:25]}  Qf6 {[%clk 0:02:20]} 19. Bg3 {[%clk 0:01:54]}  Nxc4 {[%clk 0:01:59]} 20. Qxf6 {[%clk 0:01:24]}  Nxf6 {[%clk 0:01:57]} 21. Rxc4 {[%clk 0:01:06]}  Bxd2 {[%clk 0:01:56]} 22. Bxd6 {[%clk 0:01:04]}  Rxc4 {[%clk 0:01:55]} 23. Bxc4 {[%clk 0:01:04]}  Rc8 {[%clk 0:01:56]} 24. Bb3 {[%clk 0:01:03]}  Be3+ {[%clk 0:01:45]} 25. Kh1 {[%clk 0:01:03]}  Ne4 {[%clk 0:01:46]} 26. Bg3 {[%clk 0:01:02]}  f4 {[%clk 0:01:41]} 27. d6+ {[%clk 0:00:41]}  Kf8 {[%clk 0:01:41]} 28. Bh4 {[%clk 0:00:41]}  g5 {[%clk 0:01:41]} 29. Bd5 {[%clk 0:00:37]}  Nd2 {[%clk 0:01:39]} 30. Bxg5 {[%clk 0:00:27]}  Nxf1 {[%clk 0:01:40]} 31. d7 {[%clk 0:00:28]}  Ng3+ {[%clk 0:01:40]} 32. hxg3 {[%clk 0:00:28]}  Rc1+ {[%clk 0:01:41]} 33. Kh2 {[%clk 0:00:28]}  fxg3+ {[%clk 0:01:42]} 34. Kxg3 {[%clk 0:00:21]}  Bxg5 {[%clk 0:01:43]} 35. Bxb7 {[%clk 0:00:18]}  a5 {[%clk 0:01:43]} 0-1


[Site "https://www.chess.com"]

[Event "Titled Tuesday Blitz June 20 Late 2023"]
[White "Indjic, Aleksandar"]
[Black "Leon Oquendo, Jorge"]
[WhiteFideId "911925"]
[BlackFideId "3514803"]
[WhiteElo "2614"]
[BlackElo "2276"]
[Result "1-0"]
[Round "10"]
[TimeControl "180+2"]
[Date "2023.06.20"]
[WhiteClock "0:02:42"]
[BlackClock "0:01:38"]
[Board "15"]

1. c4 {[%clk 0:03:00]}  e5 {[%clk 0:02:55]} 2. Nf3 {[%clk 0:02:59]}  e4 {[%clk 0:02:49]} 3. Nd4 {[%clk 0:02:56]}  Nc6 {[%clk 0:02:50]} 4. e3 {[%clk 0:02:54]}  Nxd4 {[%clk 0:02:48]} 5. exd4 {[%clk 0:02:55]}  Nf6 {[%clk 0:02:48]} 6. Nc3 {[%clk 0:02:54]}  d5 {[%clk 0:02:47]} 7. d3 {[%clk 0:02:53]}  exd3 {[%clk 0:02:46]} 8. Bxd3 {[%clk 0:02:54]}  dxc4 {[%clk 0:02:44]} 9. Bxc4 {[%clk 0:02:55]}  Be7 {[%clk 0:02:43]} 10. O-O {[%clk 0:02:54]}  O-O {[%clk 0:02:44]} 11. Re1 {[%clk 0:02:53]}  c6 {[%clk 0:02:35]} 12. Bf4 {[%clk 0:02:53]}  h6 {[%clk 0:02:28]} 13. Be5 {[%clk 0:02:52]}  Bf5 {[%clk 0:02:10]} 14. Qf3 {[%clk 0:02:50]}  Bg6 {[%clk 0:02:06]} 15. Qg3 {[%clk 0:02:49]}  Kh7 {[%clk 0:02:05]} 16. Rad1 {[%clk 0:02:47]}  Bd6 {[%clk 0:02:02]} 17. Bxd6 {[%clk 0:02:44]}  Nh5 {[%clk 0:01:57]} 18. Qe5 {[%clk 0:02:43]}  f6 {[%clk 0:01:38]} 19. Qe7 {[%clk 0:02:42]} 1-0


[Site "https://www.chess.com"]

[Event "Titled Tuesday Blitz June 20 Late 2023"]
[White "Holt, Conrad"]
[Black "MaryanKyrychenko"]
[WhiteFideId "2034387"]
[WhiteElo "2592"]
[BlackElo "2575"]
[Result "1-0"]
[Round "10"]
[TimeControl "180+2"]
[Date "2023.06.20"]
[WhiteClock "0:02:02"]
[BlackClock "0:01:34"]
[Board "18"]

1. d4 {[%clk 0:03:00]}  Nf6 {[%clk 0:02:55]} 2. c4 {[%clk 0:03:01]}  e6 {[%clk 0:02:54]} 3. Nc3 {[%clk 0:03:01]}  Bb4 {[%clk 0:02:54]} 4. Qc2 {[%clk 0:03:02]}  O-O {[%clk 0:02:55]} 5. e4 {[%clk 0:03:01]}  Bxc3+ {[%clk 0:02:53]} 6. bxc3 {[%clk 0:03:01]}  d5 {[%clk 0:02:53]} 7. e5 {[%clk 0:03:00]}  Nfd7 {[%clk 0:02:54]} 8. Bd3 {[%clk 0:02:58]}  h6 {[%clk 0:02:49]} 9. cxd5 {[%clk 0:02:56]}  exd5 {[%clk 0:02:49]} 10. f4 {[%clk 0:02:57]}  c5 {[%clk 0:02:48]} 11. Nf3 {[%clk 0:02:57]}  Nc6 {[%clk 0:02:48]} 12. O-O {[%clk 0:02:55]}  cxd4 {[%clk 0:02:41]} 13. cxd4 {[%clk 0:02:55]}  Nb4 {[%clk 0:02:40]} 14. Bh7+ {[%clk 0:02:55]}  Kh8 {[%clk 0:02:41]} 15. Qb1 {[%clk 0:02:56]}  a5 {[%clk 0:02:38]} 16. a3 {[%clk 0:02:55]}  Nc6 {[%clk 0:02:37]} 17. Bd3 {[%clk 0:02:54]}  b6 {[%clk 0:02:35]} 18. f5 {[%clk 0:02:54]}  Ba6 {[%clk 0:02:31]} 19. Bxa6 {[%clk 0:02:52]}  Rxa6 {[%clk 0:02:32]} 20. f6 {[%clk 0:02:52]}  b5 {[%clk 0:02:21]} 21. fxg7+ {[%clk 0:02:49]}  Kxg7 {[%clk 0:02:22]} 22. Qxb5 {[%clk 0:02:47]}  Qb6 {[%clk 0:02:14]} 23. Qxd5 {[%clk 0:02:46]}  Rd8 {[%clk 0:02:14]} 24. Qe4 {[%clk 0:02:17]}  f5 {[%clk 0:01:43]} 25. Qxf5 {[%clk 0:02:03]}  Nxd4 {[%clk 0:01:34]} 26. Qg4+ {[%clk 0:02:02]} 1-0


[Site "https://www.chess.com"]

[Event "Titled Tuesday Blitz June 20 Late 2023"]
[White "Lewtak, Damian"]
[Black "Cardoso Cardoso, Jose Gabriel"]
[WhiteFideId "1141724"]
[BlackFideId "4430492"]
[WhiteElo "2302"]
[BlackElo "2484"]
[Result "1-0"]
[Round "10"]
[TimeControl "180+2"]
[Date "2023.06.20"]
[WhiteClock "0:00:01"]
[BlackClock "0:00:14"]
[Board "19"]

1. e4 {[%clk 0:03:00]}  c5 {[%clk 0:02:59]} 2. Nf3 {[%clk 0:03:01]}  d6 {[%clk 0:02:59]} 3. Bb5+ {[%clk 0:03:01]}  Nd7 {[%clk 0:02:59]} 4. O-O {[%clk 0:03:01]}  a6 {[%clk 0:03:00]} 5. Bd3 {[%clk 0:03:01]}  Ngf6 {[%clk 0:03:01]} 6. Re1 {[%clk 0:03:01]}  e6 {[%clk 0:03:01]} 7. c3 {[%clk 0:02:59]}  b5 {[%clk 0:03:02]} 8. Bf1 {[%clk 0:02:58]}  c4 {[%clk 0:03:02]} 9. a4 {[%clk 0:02:46]}  Bb7 {[%clk 0:03:02]} 10. axb5 {[%clk 0:02:44]}  axb5 {[%clk 0:03:03]} 11. Rxa8 {[%clk 0:02:44]}  Qxa8 {[%clk 0:03:04]} 12. b3 {[%clk 0:02:43]}  Nxe4 {[%clk 0:02:48]} 13. Nd4 {[%clk 0:02:23]}  cxb3 {[%clk 0:02:10]} 14. Qxb3 {[%clk 0:02:13]}  Be7 {[%clk 0:02:06]} 15. Qxb5 {[%clk 0:02:08]}  O-O {[%clk 0:02:04]} 16. Qxd7 {[%clk 0:01:58]}  Bh4 {[%clk 0:01:44]} 17. Re2 {[%clk 0:01:30]}  Bd5 {[%clk 0:01:35]} 18. c4 {[%clk 0:01:01]}  Bxc4 {[%clk 0:01:31]} 19. g3 {[%clk 0:00:40]}  Bxe2 {[%clk 0:01:26]} 20. Nxe2 {[%clk 0:00:22]}  Bf6 {[%clk 0:01:17]} 21. Nbc3 {[%clk 0:00:20]}  Nxc3 {[%clk 0:01:06]} 22. dxc3 {[%clk 0:00:20]}  d5 {[%clk 0:01:07]} 23. Be3 {[%clk 0:00:17]}  Rc8 {[%clk 0:01:03]} 24. Qb5 {[%clk 0:00:12]}  Bxc3 {[%clk 0:00:58]} 25. Nxc3 {[%clk 0:00:13]}  Rxc3 {[%clk 0:00:58]} 26. Bd4 {[%clk 0:00:12]}  Rc8 {[%clk 0:00:57]} 27. Qe2 {[%clk 0:00:12]}  Re8 {[%clk 0:00:38]} 28. Qe5 {[%clk 0:00:09]}  f6 {[%clk 0:00:37]} 29. Qd6 {[%clk 0:00:09]}  Qd8 {[%clk 0:00:36]} 30. Qc6 {[%clk 0:00:08]}  Qc8 {[%clk 0:00:34]} 31. Qd6 {[%clk 0:00:08]}  Rd8 {[%clk 0:00:33]} 32. Qe7 {[%clk 0:00:07]}  Qd7 {[%clk 0:00:33]} 33. Qc5 {[%clk 0:00:05]}  e5 {[%clk 0:00:33]} 34. Bb2 {[%clk 0:00:04]}  Kh8 {[%clk 0:00:31]} 35. Bd3 {[%clk 0:00:03]}  Rc8 {[%clk 0:00:28]} 36. Qa5 {[%clk 0:00:03]}  e4 {[%clk 0:00:26]} 37. Bf1 {[%clk 0:00:02]}  d4 {[%clk 0:00:25]} 38. Qd2 {[%clk 0:00:02]}  d3 {[%clk 0:00:24]} 39. f3 {[%clk 0:00:02]}  Rc2 {[%clk 0:00:18]} 40. Qb4 {[%clk 0:00:02]}  d2 {[%clk 0:00:14]} 41. Qf8# {[%clk 0:00:01]} 1-0


[Site "https://www.chess.com"]

[Event "Titled Tuesday Blitz June 20 Late 2023"]
[White "Leitao, Rafael"]
[Black "Bjelobrk, Igor"]
[WhiteFideId "2101246"]
[BlackFideId "4300726"]
[WhiteElo "2609"]
[BlackElo "2319"]
[Result "1/2-1/2"]
[Round "10"]
[TimeControl "180+2"]
[Date "2023.06.20"]
[WhiteClock "0:00:12"]
[BlackClock "0:00:11"]
[Board "20"]

1. c4 {[%clk 0:03:00]}  c5 {[%clk 0:02:58]} 2. g3 {[%clk 0:02:57]}  g6 {[%clk 0:02:55]} 3. Bg2 {[%clk 0:02:55]}  Bg7 {[%clk 0:02:55]} 4. Nc3 {[%clk 0:02:55]}  Nc6 {[%clk 0:02:54]} 5. d3 {[%clk 0:02:55]}  d6 {[%clk 0:02:52]} 6. Qd2 {[%clk 0:02:55]}  Qd7 {[%clk 0:02:52]} 7. b3 {[%clk 0:02:52]}  b6 {[%clk 0:02:52]} 8. Bb2 {[%clk 0:02:51]}  Bb7 {[%clk 0:02:52]} 9. Nf3 {[%clk 0:02:47]}  Nf6 {[%clk 0:02:43]} 10. Nd5 {[%clk 0:02:43]}  O-O {[%clk 0:02:28]} 11. Nxf6+ {[%clk 0:02:34]}  exf6 {[%clk 0:02:26]} 12. O-O {[%clk 0:02:16]}  d5 {[%clk 0:02:20]} 13. cxd5 {[%clk 0:02:11]}  Qxd5 {[%clk 0:02:21]} 14. Ne5 {[%clk 0:01:57]}  Qd6 {[%clk 0:02:19]} 15. Nxc6 {[%clk 0:01:49]}  Bxc6 {[%clk 0:02:18]} 16. Bxc6 {[%clk 0:01:50]}  Qxc6 {[%clk 0:02:19]} 17. Rac1 {[%clk 0:01:47]}  Qd6 {[%clk 0:02:19]} 18. a3 {[%clk 0:01:42]}  a5 {[%clk 0:02:17]} 19. Rc4 {[%clk 0:01:28]}  f5 {[%clk 0:02:07]} 20. Bxg7 {[%clk 0:01:26]}  Kxg7 {[%clk 0:02:08]} 21. Rfc1 {[%clk 0:01:13]}  Rfe8 {[%clk 0:02:04]} 22. b4 {[%clk 0:01:01]}  axb4 {[%clk 0:02:03]} 23. axb4 {[%clk 0:01:00]}  cxb4 {[%clk 0:02:00]} 24. e3 {[%clk 0:00:50]}  Ra4 {[%clk 0:01:37]} 25. Qb2+ {[%clk 0:00:45]}  Kg8 {[%clk 0:01:33]} 26. Rc8 {[%clk 0:00:42]}  Ra8 {[%clk 0:01:29]} 27. Rxe8+ {[%clk 0:00:39]}  Rxe8 {[%clk 0:01:29]} 28. d4 {[%clk 0:00:40]}  f4 {[%clk 0:01:25]} 29. gxf4 {[%clk 0:00:37]}  Qe6 {[%clk 0:01:20]} 30. Qxb4 {[%clk 0:00:34]}  Qg4+ {[%clk 0:01:19]} 31. Kf1 {[%clk 0:00:33]}  Qh3+ {[%clk 0:01:14]} 32. Ke2 {[%clk 0:00:34]}  Qxh2 {[%clk 0:01:15]} 33. Qxb6 {[%clk 0:00:32]}  Qxf4 {[%clk 0:01:14]} 34. Qc6 {[%clk 0:00:30]}  Qg4+ {[%clk 0:01:10]} 35. Qf3 {[%clk 0:00:29]}  Qd7 {[%clk 0:01:10]} 36. Qc6 {[%clk 0:00:29]}  Qg4+ {[%clk 0:01:09]} 37. Qf3 {[%clk 0:00:29]}  Qxd4 {[%clk 0:01:06]} 38. Rc7 {[%clk 0:00:23]}  Qb2+ {[%clk 0:01:04]} 39. Kf1 {[%clk 0:00:22]}  Qb5+ {[%clk 0:00:59]} 40. Kg2 {[%clk 0:00:22]}  Qg5+ {[%clk 0:00:52]} 41. Kf1 {[%clk 0:00:22]}  Rf8 {[%clk 0:00:45]} 42. Rd7 {[%clk 0:00:21]}  Kg7 {[%clk 0:00:44]} 43. Rd5 {[%clk 0:00:21]}  Qf6 {[%clk 0:00:44]} 44. Qxf6+ {[%clk 0:00:19]}  Kxf6 {[%clk 0:00:44]} 45. Kg2 {[%clk 0:00:19]}  g5 {[%clk 0:00:41]} 46. f4 {[%clk 0:00:19]}  h6 {[%clk 0:00:38]} 47. fxg5+ {[%clk 0:00:18]}  hxg5 {[%clk 0:00:37]} 48. Kf3 {[%clk 0:00:19]}  Kg6 {[%clk 0:00:38]} 49. e4 {[%clk 0:00:19]}  f6 {[%clk 0:00:36]} 50. Rd6 {[%clk 0:00:18]}  Re8 {[%clk 0:00:35]} 51. Ke3 {[%clk 0:00:18]}  Re5 {[%clk 0:00:33]} 52. Kf3 {[%clk 0:00:18]}  Ra5 {[%clk 0:00:33]} 53. Rc6 {[%clk 0:00:18]}  Ra3+ {[%clk 0:00:28]} 54. Kf2 {[%clk 0:00:19]}  Kf7 {[%clk 0:00:22]} 55. Rb6 {[%clk 0:00:19]}  g4 {[%clk 0:00:21]} 56. Rc6 {[%clk 0:00:18]}  Rf3+ {[%clk 0:00:18]} 57. Ke2 {[%clk 0:00:17]}  Kg7 {[%clk 0:00:16]} 58. Rb6 {[%clk 0:00:16]}  Rf4 {[%clk 0:00:16]} 59. Ke3 {[%clk 0:00:17]}  Rf1 {[%clk 0:00:16]} 60. Ke2 {[%clk 0:00:17]}  Rf3 {[%clk 0:00:15]} 61. Ra6 {[%clk 0:00:17]}  Rh3 {[%clk 0:00:10]} 62. Rb6 {[%clk 0:00:17]}  Rh5 {[%clk 0:00:09]} 63. Ke3 {[%clk 0:00:16]}  Kg6 {[%clk 0:00:10]} 64. Kf4 {[%clk 0:00:15]}  Rg5 {[%clk 0:00:08]} 65. e5 {[%clk 0:00:15]}  Rxe5 {[%clk 0:00:06]} 66. Kxg4 {[%clk 0:00:14]}  Re4+ {[%clk 0:00:07]} 67. Kf3 {[%clk 0:00:15]}  Ra4 {[%clk 0:00:07]} 68. Kg3 {[%clk 0:00:15]}  Kg5 {[%clk 0:00:07]} 69. Kf3 {[%clk 0:00:15]}  f5 {[%clk 0:00:08]} 70. Rb8 {[%clk 0:00:15]}  Ra3+ {[%clk 0:00:08]} 71. Kf2 {[%clk 0:00:16]}  Kg4 {[%clk 0:00:08]} 72. Rb4+ {[%clk 0:00:16]}  f4 {[%clk 0:00:08]} 73. Rb2 {[%clk 0:00:13]}  Rh3 {[%clk 0:00:07]} 74. Rb8 {[%clk 0:00:08]}  Rh2+ {[%clk 0:00:07]} 75. Kg1 {[%clk 0:00:09]}  Ra2 {[%clk 0:00:07]} 76. Rb3 {[%clk 0:00:08]}  Re2 {[%clk 0:00:06]} 77. Kf1 {[%clk 0:00:08]}  Rd2 {[%clk 0:00:06]} 78. Ra3 {[%clk 0:00:08]}  Rd5 {[%clk 0:00:06]} 79. Rb3 {[%clk 0:00:08]}  Re5 {[%clk 0:00:07]} 80. Kf2 {[%clk 0:00:09]}  Re7 {[%clk 0:00:07]} 81. Ra3 {[%clk 0:00:09]}  Rh7 {[%clk 0:00:07]} 82. Rb3 {[%clk 0:00:09]}  Rh2+ {[%clk 0:00:07]} 83. Kg1 {[%clk 0:00:09]}  Rh3 {[%clk 0:00:07]} 84. Rxh3 {[%clk 0:00:09]}  Kxh3 {[%clk 0:00:08]} 85. Kf2 {[%clk 0:00:09]}  Kg4 {[%clk 0:00:08]} 86. Kg2 {[%clk 0:00:10]}  f3+ {[%clk 0:00:09]} 87. Kf2 {[%clk 0:00:10]}  Kf4 {[%clk 0:00:09]} 88. Kf1 {[%clk 0:00:11]}  Ke3 {[%clk 0:00:10]} 89. Ke1 {[%clk 0:00:12]}  f2+ {[%clk 0:00:10]} 90. Kf1 {[%clk 0:00:12]}  Kf3 {[%clk 0:00:11]} 1/2-1/2


[Site "https://www.chess.com"]

[Event "Titled Tuesday Blitz June 20 Late 2023"]
[White "Bryakin, Mikhail"]
[Black "Sharan, Rao"]
[WhiteFideId "4165314"]
[BlackFideId "5073464"]
[WhiteElo "2464"]
[BlackElo "2149"]
[Result "0-1"]
[Round "10"]
[TimeControl "180+2"]
[Date "2023.06.20"]
[WhiteClock "0:00:00"]
[BlackClock "0:00:05"]
[Board "21"]

1. e4 {[%clk 0:02:59]}  c6 {[%clk 0:02:57]} 2. d4 {[%clk 0:02:59]}  d5 {[%clk 0:02:57]} 3. e5 {[%clk 0:03:00]}  c5 {[%clk 0:02:56]} 4. Nf3 {[%clk 0:02:59]}  Nc6 {[%clk 0:02:56]} 5. dxc5 {[%clk 0:02:57]}  Bf5 {[%clk 0:02:55]} 6. c3 {[%clk 0:02:47]}  a5 {[%clk 0:02:53]} 7. Bb5 {[%clk 0:02:44]}  Bg4 {[%clk 0:02:47]} 8. h3 {[%clk 0:02:41]}  Bxf3 {[%clk 0:02:47]} 9. Qxf3 {[%clk 0:02:41]}  e6 {[%clk 0:02:48]} 10. Be3 {[%clk 0:02:40]}  Qc7 {[%clk 0:02:47]} 11. Bd4 {[%clk 0:02:32]}  Ne7 {[%clk 0:02:46]} 12. O-O {[%clk 0:02:31]}  Ng6 {[%clk 0:02:44]} 13. Qe3 {[%clk 0:02:28]}  Be7 {[%clk 0:02:44]} 14. f4 {[%clk 0:02:28]}  O-O {[%clk 0:02:40]} 15. Nd2 {[%clk 0:02:21]}  a4 {[%clk 0:02:36]} 16. b4 {[%clk 0:02:15]}  Nh4 {[%clk 0:02:28]} 17. g4 {[%clk 0:02:04]}  Rae8 {[%clk 0:02:28]} 18. Bxa4 {[%clk 0:02:02]}  f6 {[%clk 0:02:28]} 19. Bxc6 {[%clk 0:02:02]}  bxc6 {[%clk 0:02:27]} 20. Nf3 {[%clk 0:01:54]}  Nxf3+ {[%clk 0:02:19]} 21. Rxf3 {[%clk 0:01:55]}  f5 {[%clk 0:02:17]} 22. g5 {[%clk 0:01:54]}  h6 {[%clk 0:02:15]} 23. h4 {[%clk 0:01:55]}  hxg5 {[%clk 0:02:12]} 24. hxg5 {[%clk 0:01:55]}  g6 {[%clk 0:02:13]} 25. Rh3 {[%clk 0:01:55]}  Kg7 {[%clk 0:02:13]} 26. a4 {[%clk 0:01:55]}  Rh8 {[%clk 0:02:14]} 27. Kg2 {[%clk 0:01:53]}  Rxh3 {[%clk 0:02:13]} 28. Qxh3 {[%clk 0:01:54]}  Rh8 {[%clk 0:02:14]} 29. Qf3 {[%clk 0:01:54]}  Qa7 {[%clk 0:02:13]} 30. a5 {[%clk 0:01:49]}  Qa6 {[%clk 0:02:13]} 31. Qf1 {[%clk 0:01:48]}  Qa8 {[%clk 0:02:10]} 32. Qf3 {[%clk 0:01:36]}  Rh4 {[%clk 0:02:05]} 33. Rh1 {[%clk 0:01:33]}  Rg4+ {[%clk 0:02:04]} 34. Kf2 {[%clk 0:01:33]}  Qa6 {[%clk 0:02:03]} 35. Rg1 {[%clk 0:00:41]}  Rh4 {[%clk 0:01:47]} 36. Kg3 {[%clk 0:00:41]}  Rg4+ {[%clk 0:01:41]} 37. Kh3 {[%clk 0:00:41]}  Rxg1 {[%clk 0:01:25]} 38. Bxg1 {[%clk 0:00:42]}  Qc4 {[%clk 0:01:25]} 39. Bd4 {[%clk 0:00:40]}  Bd8 {[%clk 0:01:24]} 40. Kg2 {[%clk 0:00:40]}  Bc7 {[%clk 0:01:22]} 41. Qf1 {[%clk 0:00:40]}  Qa2+ {[%clk 0:01:22]} 42. Kg3 {[%clk 0:00:39]}  Qd2 {[%clk 0:01:19]} 43. a6 {[%clk 0:00:38]}  Bb8 {[%clk 0:01:19]} 44. Kf3 {[%clk 0:00:37]}  Ba7 {[%clk 0:01:18]} 45. Qe2 {[%clk 0:00:36]}  Qc1 {[%clk 0:01:17]} 46. Qf2 {[%clk 0:00:28]}  Qd1+ {[%clk 0:01:17]} 47. Kg3 {[%clk 0:00:29]}  Qa1 {[%clk 0:01:15]} 48. Qe2 {[%clk 0:00:27]}  Qb1 {[%clk 0:01:12]} 49. Bf2 {[%clk 0:00:27]}  Qa1 {[%clk 0:01:09]} 50. Qd3 {[%clk 0:00:23]}  Qb2 {[%clk 0:01:04]} 51. Kg2 {[%clk 0:00:18]}  Qa2 {[%clk 0:01:01]} 52. Kf3 {[%clk 0:00:18]}  Qb2 {[%clk 0:01:00]} 53. Be1 {[%clk 0:00:16]}  Qa1 {[%clk 0:00:59]} 54. Bd2 {[%clk 0:00:15]}  Qh1+ {[%clk 0:00:59]} 55. Ke2 {[%clk 0:00:16]}  Qg2+ {[%clk 0:00:53]} 56. Kd1 {[%clk 0:00:16]}  Qg1+ {[%clk 0:00:50]} 57. Be1 {[%clk 0:00:15]}  Qg4+ {[%clk 0:00:50]} 58. Kc2 {[%clk 0:00:13]}  Qxf4 {[%clk 0:00:48]} 59. Qe2 {[%clk 0:00:11]}  Qxg5 {[%clk 0:00:36]} 60. b5 {[%clk 0:00:11]}  cxb5 {[%clk 0:00:36]} 61. Qxb5 {[%clk 0:00:12]}  Qg2+ {[%clk 0:00:36]} 62. Bd2 {[%clk 0:00:12]}  Qe4+ {[%clk 0:00:36]} 63. Kc1 {[%clk 0:00:13]}  Qh1+ {[%clk 0:00:35]} 64. Kb2 {[%clk 0:00:13]}  Qg2 {[%clk 0:00:35]} 65. Kc1 {[%clk 0:00:13]}  Qg1+ {[%clk 0:00:30]} 66. Kb2 {[%clk 0:00:12]}  Qxc5 {[%clk 0:00:27]} 67. Qxc5 {[%clk 0:00:06]}  Bxc5 {[%clk 0:00:26]} 68. c4 {[%clk 0:00:04]}  dxc4 {[%clk 0:00:25]} 69. Kc3 {[%clk 0:00:05]}  g5 {[%clk 0:00:14]} 70. Kxc4 {[%clk 0:00:06]}  Ba7 {[%clk 0:00:13]} 71. Bc3 {[%clk 0:00:06]}  Kg6 {[%clk 0:00:09]} 72. Bd4 {[%clk 0:00:07]}  Bb8 {[%clk 0:00:10]} 73. Kb5 {[%clk 0:00:06]}  f4 {[%clk 0:00:08]} 74. Kc6 {[%clk 0:00:07]}  f3 {[%clk 0:00:08]} 75. Kb7 {[%clk 0:00:06]}  Bxe5 {[%clk 0:00:09]} 76. Bf2 {[%clk 0:00:07]}  g4 {[%clk 0:00:07]} 77. a7 {[%clk 0:00:07]}  g3 {[%clk 0:00:08]} 78. Bxg3 {[%clk 0:00:04]}  Bxg3 {[%clk 0:00:09]} 79. a8=Q {[%clk 0:00:05]}  Kf5 {[%clk 0:00:05]} 80. Kc6 {[%clk 0:00:03]}  f2 {[%clk 0:00:04]} 81. Qf8+ {[%clk 0:00:02]}  Kg4 {[%clk 0:00:04]} 82. Kc5 {[%clk 0:00:02]}  e5 {[%clk 0:00:04]} 83. Kd5 {[%clk 0:00:02]}  Bf4 {[%clk 0:00:03]} 84. Qg8+ {[%clk 0:00:02]}  Kf3 {[%clk 0:00:04]} 85. Ke6 {[%clk 0:00:01]}  f1=Q {[%clk 0:00:04]} 86. Qa8+ {[%clk 0:00:02]}  Kf2 {[%clk 0:00:04]} 87. Qe4 {[%clk 0:00:02]}  Kg1 {[%clk 0:00:05]} 88. Kf5 {[%clk 0:00:02]}  Qg2 {[%clk 0:00:05]} 89. Ke6 {[%clk 0:00:00]}  Qxe4 {[%clk 0:00:05]} 0-1


[Site "https://www.chess.com"]

[Event "Titled Tuesday Blitz June 20 Late 2023"]
[White "Santos Ruiz, Miguel"]
[Black "Fiorito, Francisco"]
[WhiteFideId "22291482"]
[BlackFideId "180165"]
[WhiteElo "2499"]
[BlackElo "2319"]
[Result "0-1"]
[Round "10"]
[TimeControl "180+2"]
[Date "2023.06.20"]
[WhiteClock "0:00:00"]
[BlackClock "0:00:24"]
[Board "22"]

1. e4 {[%clk 0:03:00]}  e5 {[%clk 0:02:59]} 2. Nf3 {[%clk 0:03:01]}  Nf6 {[%clk 0:02:59]} 3. Nxe5 {[%clk 0:02:59]}  d6 {[%clk 0:02:58]} 4. Nd3 {[%clk 0:03:00]}  Nxe4 {[%clk 0:02:58]} 5. Qe2 {[%clk 0:03:00]}  Qe7 {[%clk 0:02:58]} 6. Nf4 {[%clk 0:03:00]}  c6 {[%clk 0:02:56]} 7. d4 {[%clk 0:02:58]}  Nf6 {[%clk 0:02:53]} 8. h4 {[%clk 0:02:58]}  h5 {[%clk 0:02:46]} 9. f3 {[%clk 0:02:55]}  Bf5 {[%clk 0:02:44]} 10. c3 {[%clk 0:02:52]}  Qxe2+ {[%clk 0:02:42]} 11. Bxe2 {[%clk 0:02:52]}  d5 {[%clk 0:02:43]} 12. Nd2 {[%clk 0:02:51]}  Bd6 {[%clk 0:02:43]} 13. Nf1 {[%clk 0:02:51]}  g6 {[%clk 0:02:39]} 14. Kf2 {[%clk 0:02:46]}  Kf8 {[%clk 0:02:36]} 15. Ng3 {[%clk 0:02:41]}  Bd7 {[%clk 0:02:34]} 16. Bd3 {[%clk 0:02:39]}  Kg7 {[%clk 0:02:33]} 17. Bd2 {[%clk 0:02:38]}  Na6 {[%clk 0:02:30]} 18. Bxa6 {[%clk 0:02:28]}  bxa6 {[%clk 0:02:31]} 19. Nd3 {[%clk 0:02:28]}  a5 {[%clk 0:02:26]} 20. b3 {[%clk 0:02:20]}  Rhc8 {[%clk 0:02:22]} 21. Ne2 {[%clk 0:02:07]}  Rab8 {[%clk 0:02:20]} 22. Bf4 {[%clk 0:02:05]}  Bxf4 {[%clk 0:02:13]} 23. Nexf4 {[%clk 0:02:04]}  a4 {[%clk 0:02:05]} 24. Nc5 {[%clk 0:01:58]}  a3 {[%clk 0:01:51]} 25. Rhe1 {[%clk 0:01:52]}  Re8 {[%clk 0:01:47]} 26. Rxe8 {[%clk 0:01:40]}  Rxe8 {[%clk 0:01:47]} 27. b4 {[%clk 0:01:38]}  Bf5 {[%clk 0:01:45]} 28. Ne2 {[%clk 0:01:09]}  Re7 {[%clk 0:01:28]} 29. Ng3 {[%clk 0:01:08]}  Bc8 {[%clk 0:01:22]} 30. Rb1 {[%clk 0:01:08]}  Nd7 {[%clk 0:01:15]} 31. Nxd7 {[%clk 0:00:36]}  Rxd7 {[%clk 0:01:16]} 32. Rb3 {[%clk 0:00:35]}  Ba6 {[%clk 0:01:17]} 33. Rxa3 {[%clk 0:00:36]}  Bc4 {[%clk 0:01:17]} 34. Ra5 {[%clk 0:00:28]}  Re7 {[%clk 0:01:18]} 35. a3 {[%clk 0:00:25]}  f6 {[%clk 0:01:17]} 36. Rc5 {[%clk 0:00:25]}  Re6 {[%clk 0:01:17]} 37. a4 {[%clk 0:00:24]}  a6 {[%clk 0:01:17]} 38. Nh1 {[%clk 0:00:18]}  f5 {[%clk 0:01:15]} 39. Kg3 {[%clk 0:00:17]}  Kf7 {[%clk 0:01:06]} 40. Nf2 {[%clk 0:00:17]}  Ke7 {[%clk 0:01:06]} 41. Nh3 {[%clk 0:00:15]}  Kd7 {[%clk 0:01:05]} 42. Nf4 {[%clk 0:00:13]}  Rf6 {[%clk 0:01:05]} 43. Kf2 {[%clk 0:00:11]}  Rd6 {[%clk 0:01:01]} 44. Ra5 {[%clk 0:00:10]}  Kc7 {[%clk 0:00:57]} 45. Ke3 {[%clk 0:00:08]}  Kb6 {[%clk 0:00:56]} 46. Rc5 {[%clk 0:00:06]}  Rf6 {[%clk 0:00:54]} 47. Kf2 {[%clk 0:00:05]}  Rd6 {[%clk 0:00:53]} 48. Kg3 {[%clk 0:00:05]}  Kc7 {[%clk 0:00:44]} 49. Nh3 {[%clk 0:00:05]}  Kd7 {[%clk 0:00:41]} 50. Kf4 {[%clk 0:00:05]}  Bf1 {[%clk 0:00:34]} 51. Kg3 {[%clk 0:00:02]}  Bc4 {[%clk 0:00:31]} 52. Ng5 {[%clk 0:00:02]}  Rf6 {[%clk 0:00:27]} 53. Kf4 {[%clk 0:00:00]}  Kd6 {[%clk 0:00:24]} 0-1


[Site "https://www.chess.com"]